[Event "*** Titled Tuesday Blitz"]
[Site "Chess.com"]
[Date "2020.04.14"]
[Round "9"]
[White "krzyzan94"]
[Black "Beca95"]
[Result "0-1"]
[WhiteElo "2702"]
[BlackElo "2894"]
[TimeControl "180+1"]
[EndTime "11:43:46 PDT"]
[Termination "Beca95 won by checkmate"]

1. d4 {[%clk 0:03:00.9]} 1... Nf6 {[%clk 0:02:59.3]} 2. Nf3 {[%clk 0:03:00.5]}
2... e6 {[%clk 0:02:59]} 3. Bf4 {[%clk 0:02:58.9]} 3... d5 {[%clk 0:02:57.4]} 4.
Nbd2 {[%clk 0:02:57.3]} 4... Bd6 {[%clk 0:02:56.7]} 5. e3 {[%clk 0:02:57.2]}
5... O-O {[%clk 0:02:54.5]} 6. c3 {[%clk 0:02:56.1]} 6... b6 {[%clk 0:02:54.2]}
7. h4 {[%clk 0:02:53.6]} 7... c5 {[%clk 0:02:46.4]} 8. h5 {[%clk 0:02:43.6]}
8... h6 {[%clk 0:02:45.9]} 9. Bd3 {[%clk 0:02:42.8]} 9... Bxf4 {[%clk
0:02:41.4]} 10. exf4 {[%clk 0:02:43.7]} 10... Qd6 {[%clk 0:02:37.8]} 11. Ne5
{[%clk 0:02:39.8]} 11... Ba6 {[%clk 0:02:31.5]} 12. Qe2 {[%clk 0:02:20.7]} 12...
Bxd3 {[%clk 0:02:29.5]} 13. Qxd3 {[%clk 0:02:21.6]} 13... cxd4 {[%clk
0:02:27.6]} 14. cxd4 {[%clk 0:02:21.1]} 14... Nc6 {[%clk 0:02:27.8]} 15. a3
{[%clk 0:02:21.5]} 15... Ne4 {[%clk 0:02:25.3]} 16. Ndf3 {[%clk 0:02:11.6]}
16... Rac8 {[%clk 0:02:21.8]} 17. O-O {[%clk 0:02:11.5]} 17... Ne7 {[%clk
0:02:15.8]} 18. Rfe1 {[%clk 0:02:06.4]} 18... Rc7 {[%clk 0:02:14.2]} 19. g4
{[%clk 0:01:42.7]} 19... f6 {[%clk 0:02:11]} 20. g5 {[%clk 0:01:19]} 20... fxe5
{[%clk 0:02:09.6]} 21. fxe5 {[%clk 0:01:18.7]} 21... Qd8 {[%clk 0:02:08.1]} 22.
gxh6 {[%clk 0:01:14.7]} 22... Nf5 {[%clk 0:02:06.6]} 23. h7+ {[%clk 0:01:09]}
23... Kxh7 {[%clk 0:02:05.2]} 24. Rad1 {[%clk 0:01:07.7]} 24... Rcf7 {[%clk
0:02:03.3]} 25. Rxe4 {[%clk 0:01:00.7]} 25... dxe4 {[%clk 0:02:02.2]} 26. Qxe4
{[%clk 0:01:01.6]} 26... Kh8 {[%clk 0:02:01.5]} 27. d5 {[%clk 0:00:52.4]} 27...
Ng3 {[%clk 0:01:59.1]} 28. fxg3 {[%clk 0:00:42.4]} 28... Rxf3 {[%clk 0:01:57.8]}
29. Kg2 {[%clk 0:00:37]} 29... Qg5 {[%clk 0:01:27.5]} 30. Qxf3 {[%clk
0:00:18.7]} 30... Rxf3 {[%clk 0:01:25.2]} 31. Kxf3 {[%clk 0:00:19.6]} 31...
Qxh5+ {[%clk 0:01:21.6]} 32. g4 {[%clk 0:00:19.2]} 32... Qf7+ {[%clk 0:01:18.9]}
33. Ke4 {[%clk 0:00:14.7]} 33... exd5+ {[%clk 0:01:18.1]} 34. Rxd5 {[%clk
0:00:15.6]} 34... g5 {[%clk 0:01:16.3]} 35. Rd6 {[%clk 0:00:11.3]} 35... Qf4+
{[%clk 0:01:13.9]} 36. Kd5 {[%clk 0:00:11.9]} 36... Kg7 {[%clk 0:01:08.8]} 37.
Rd7+ {[%clk 0:00:10.2]} 37... Kf8 {[%clk 0:01:08.2]} 38. e6 {[%clk 0:00:09.7]}
38... Qxg4 {[%clk 0:01:01.3]} 39. Rxa7 {[%clk 0:00:09.7]} 39... Qf5+ {[%clk
0:00:57.4]} 40. Kd6 {[%clk 0:00:10.1]} 40... Qf4+ {[%clk 0:00:50.5]} 41. Kd5
{[%clk 0:00:10.4]} 41... g4 {[%clk 0:00:24.3]} 42. Ra8+ {[%clk 0:00:09]} 42...
Kg7 {[%clk 0:00:23.4]} 43. Ra7+ {[%clk 0:00:09.5]} 43... Kg6 {[%clk 0:00:22.2]}
44. Rf7 {[%clk 0:00:04.7]} 44... Qd2+ {[%clk 0:00:14.2]} 45. Kc6 {[%clk
0:00:04.3]} 45... g3 {[%clk 0:00:13.8]} 46. Rf8 {[%clk 0:00:03.6]} 46... Qc2+
{[%clk 0:00:10.9]} 47. Kd7 {[%clk 0:00:04]} 47... Qd3+ {[%clk 0:00:11.1]} 48.
Kc7 {[%clk 0:00:04.2]} 48... Qe3 {[%clk 0:00:10]} 49. Kd7 {[%clk 0:00:02.7]}
49... Qd4+ {[%clk 0:00:10.2]} 50. Ke8 {[%clk 0:00:02.8]} 50... g2 {[%clk
0:00:09.3]} 51. Rg8+ {[%clk 0:00:03]} 51... Kf6 {[%clk 0:00:09.7]} 52. Rxg2
{[%clk 0:00:03.9]} 52... Kxe6 {[%clk 0:00:09.8]} 53. Rc2 {[%clk 0:00:03.9]}
53... Qd7+ {[%clk 0:00:08.5]} 54. Kf8 {[%clk 0:00:04.2]} 54... Qf7# {[%clk
0:00:09.3]} 0-1

[Event "*** Titled Tuesday Blitz"]
[Site "Chess.com"]
[Date "2020.04.14"]
[Round "9"]
[White "Harry_Rakkel"]
[Black "GMAkobianSTL"]
[Result "1-0"]
[WhiteElo "2576"]
[BlackElo "2764"]
[TimeControl "180+1"]
[EndTime "11:43:46 PDT"]
[Termination "Harry_Rakkel won on time"]

1. d4 {[%clk 0:03:00.9]} 1... d5 {[%clk 0:02:59.1]} 2. c4 {[%clk 0:03:00.6]}
2... e6 {[%clk 0:02:59.4]} 3. Nc3 {[%clk 0:02:59.8]} 3... c5 {[%clk 0:02:59.7]}
4. cxd5 {[%clk 0:02:56.3]} 4... exd5 {[%clk 0:03:00.3]} 5. Nf3 {[%clk 0:02:55]}
5... Nc6 {[%clk 0:03:00.9]} 6. e3 {[%clk 0:02:53.6]} 6... c4 {[%clk 0:03:00.6]}
7. Ne5 {[%clk 0:02:44.2]} 7... Bb4 {[%clk 0:02:54.8]} 8. Qa4 {[%clk 0:02:31.5]}
8... Ne7 {[%clk 0:02:51.4]} 9. Bd2 {[%clk 0:02:21.2]} 9... O-O {[%clk
0:02:50.7]} 10. Be2 {[%clk 0:02:06.9]} 10... a6 {[%clk 0:02:46.2]} 11. O-O
{[%clk 0:02:03.4]} 11... b5 {[%clk 0:02:45.2]} 12. Qd1 {[%clk 0:01:58.3]} 12...
f6 {[%clk 0:02:38]} 13. Nxc6 {[%clk 0:01:56.6]} 13... Nxc6 {[%clk 0:02:38.1]}
14. Bf3 {[%clk 0:01:52.8]} 14... Be6 {[%clk 0:02:37.6]} 15. Ne2 {[%clk
0:01:51.6]} 15... Bd6 {[%clk 0:02:35.6]} 16. e4 {[%clk 0:01:44.7]} 16... Ne7
{[%clk 0:02:31.6]} 17. Nf4 {[%clk 0:01:40.6]} 17... Bxf4 {[%clk 0:02:30.2]} 18.
Bxf4 {[%clk 0:01:40.2]} 18... dxe4 {[%clk 0:02:29.9]} 19. Bxe4 {[%clk 0:01:40]}
19... Bd5 {[%clk 0:02:26.7]} 20. Bc2 {[%clk 0:01:38.4]} 20... Ng6 {[%clk
0:02:22.6]} 21. Bg3 {[%clk 0:01:35.3]} 21... Qd7 {[%clk 0:02:19.1]} 22. Qd2
{[%clk 0:01:32.6]} 22... Rfe8 {[%clk 0:02:17.5]} 23. h3 {[%clk 0:01:16.2]} 23...
Rad8 {[%clk 0:02:11.4]} 24. Rfe1 {[%clk 0:01:15.1]} 24... Rxe1+ {[%clk
0:02:05.5]} 25. Rxe1 {[%clk 0:01:14.4]} 25... Bc6 {[%clk 0:02:06.1]} 26. Qa5
{[%clk 0:01:04.6]} 26... Ra8 {[%clk 0:01:23.5]} 27. Qb6 {[%clk 0:00:58.2]} 27...
Qb7 {[%clk 0:01:19.1]} 28. Qxb7 {[%clk 0:00:47.1]} 28... Bxb7 {[%clk 0:01:20]}
29. Re6 {[%clk 0:00:45.6]} 29... Bd5 {[%clk 0:01:13.3]} 30. Rd6 {[%clk
0:00:44.4]} 30... Bf7 {[%clk 0:01:04.6]} 31. Be4 {[%clk 0:00:39.2]} 31... Re8
{[%clk 0:01:03.8]} 32. f3 {[%clk 0:00:37.9]} 32... Ne7 {[%clk 0:00:57.5]} 33.
Rxa6 {[%clk 0:00:35.8]} 33... f5 {[%clk 0:00:52.7]} 34. Bb7 {[%clk 0:00:31.3]}
34... Bd5 {[%clk 0:00:45.7]} 35. Bxd5+ {[%clk 0:00:29.9]} 35... Nxd5 {[%clk
0:00:45.3]} 36. Be5 {[%clk 0:00:30.8]} 36... b4 {[%clk 0:00:42]} 37. Rd6 {[%clk
0:00:29.5]} 37... Ne3 {[%clk 0:00:29.5]} 38. Rd7 {[%clk 0:00:25.8]} 38... c3
{[%clk 0:00:19.4]} 39. bxc3 {[%clk 0:00:24.7]} 39... bxc3 {[%clk 0:00:19.6]} 40.
Rxg7+ {[%clk 0:00:24.4]} 40... Kf8 {[%clk 0:00:18.8]} 41. Rc7 {[%clk 0:00:24]}
41... Nd5 {[%clk 0:00:15.7]} 42. Rc5 {[%clk 0:00:21.1]} 42... Rd8 {[%clk
0:00:16]} 43. Kf2 {[%clk 0:00:18.1]} 43... Ke7 {[%clk 0:00:16.3]} 44. Ke2 {[%clk
0:00:17.6]} 44... Ke6 {[%clk 0:00:16.5]} 45. Kd3 {[%clk 0:00:17.2]} 45... Ra8
{[%clk 0:00:17.1]} 46. Rc6+ {[%clk 0:00:16.8]} 46... Ke7 {[%clk 0:00:16.8]} 47.
Rd6 {[%clk 0:00:14.7]} 47... Ra5 {[%clk 0:00:16.2]} 48. a4 {[%clk 0:00:14.3]}
48... f4 {[%clk 0:00:15.3]} 49. Rh6 {[%clk 0:00:13.2]} 49... Rxa4 {[%clk
0:00:13.6]} 50. Rxh7+ {[%clk 0:00:13.2]} 50... Ke6 {[%clk 0:00:14]} 51. Rh6+
{[%clk 0:00:13.2]} 51... Ke7 {[%clk 0:00:14.3]} 52. Rd6 {[%clk 0:00:12.9]} 52...
Ra5 {[%clk 0:00:14.3]} 53. h4 {[%clk 0:00:12.2]} 53... Ne3 {[%clk 0:00:03.3]}
54. h5 {[%clk 0:00:10.5]} 54... c2 {[%clk 0:00:02.2]} 55. Rc6 {[%clk 0:00:07.5]}
55... Ra1 {[%clk 0:00:02.2]} 56. Bxf4 {[%clk 0:00:07]} 1-0

[Event "*** Titled Tuesday Blitz"]
[Site "Chess.com"]
[Date "2020.04.14"]
[Round "9"]
[White "czasnaszachy"]
[Black "HrvojeZagreb"]
[Result "0-1"]
[WhiteElo "2295"]
[BlackElo "2192"]
[TimeControl "180+1"]
[EndTime "11:43:47 PDT"]
[Termination "HrvojeZagreb won on time"]

1. d4 {[%clk 0:03:00.9]} 1... e6 {[%clk 0:02:59.2]} 2. c4 {[%clk 0:03:00.5]}
2... f5 {[%clk 0:02:59.6]} 3. g3 {[%clk 0:02:59.9]} 3... Nf6 {[%clk 0:02:59.7]}
4. Bg2 {[%clk 0:02:59.3]} 4... Be7 {[%clk 0:02:59.9]} 5. Nf3 {[%clk 0:02:57.5]}
5... O-O {[%clk 0:03:00.4]} 6. O-O {[%clk 0:02:54]} 6... d6 {[%clk 0:02:59.8]}
7. Nc3 {[%clk 0:02:47.3]} 7... Nc6 {[%clk 0:02:59.2]} 8. Bf4 {[%clk 0:02:45.7]}
8... Ne4 {[%clk 0:02:52.2]} 9. Qc2 {[%clk 0:02:35.2]} 9... Nxc3 {[%clk 0:02:50]}
10. Qxc3 {[%clk 0:02:26.8]} 10... Bf6 {[%clk 0:02:48.3]} 11. b4 {[%clk
0:02:19.2]} 11... Nxd4 {[%clk 0:02:18.3]} 12. Nxd4 {[%clk 0:02:14]} 12... e5
{[%clk 0:02:18.2]} 13. Be3 {[%clk 0:02:08]} 13... exd4 {[%clk 0:02:16.6]} 14.
Bxd4 {[%clk 0:02:08.2]} 14... Bxd4 {[%clk 0:02:11.8]} 15. Qxd4 {[%clk
0:02:07.3]} 15... Qf6 {[%clk 0:02:11.6]} 16. Rfd1 {[%clk 0:01:57.8]} 16... f4
{[%clk 0:02:08.1]} 17. c5 {[%clk 0:01:45]} 17... Qxd4 {[%clk 0:02:01.5]} 18.
Rxd4 {[%clk 0:01:44.6]} 18... dxc5 {[%clk 0:02:01.2]} 19. bxc5 {[%clk
0:01:44.8]} 19... fxg3 {[%clk 0:02:01.2]} 20. hxg3 {[%clk 0:01:44.4]} 20... c6
{[%clk 0:01:59.3]} 21. Rb1 {[%clk 0:01:43.5]} 21... a5 {[%clk 0:01:11.4]} 22. f4
{[%clk 0:01:07.3]} 22... a4 {[%clk 0:01:00.2]} 23. e4 {[%clk 0:00:49.9]} 23...
Ra5 {[%clk 0:00:56.2]} 24. Rc4 {[%clk 0:00:32.4]} 24... Rd8 {[%clk 0:00:44.6]}
25. Rb2 {[%clk 0:00:30.8]} 25... a3 {[%clk 0:00:41]} 26. Rbc2 {[%clk 0:00:28.1]}
26... Rd1+ {[%clk 0:00:25.1]} 27. Kf2 {[%clk 0:00:28]} 27... Rb1 {[%clk
0:00:24.2]} 28. f5 {[%clk 0:00:19.6]} 28... Rb2 {[%clk 0:00:22.5]} 29. Ke3
{[%clk 0:00:17.3]} 29... g6 {[%clk 0:00:16.4]} 30. g4 {[%clk 0:00:17]} 30... Kf7
{[%clk 0:00:15.3]} 31. Bf1 {[%clk 0:00:15.9]} 31... g5 {[%clk 0:00:10.7]} 32. e5
{[%clk 0:00:13.1]} 32... h5 {[%clk 0:00:09.9]} 33. Be2 {[%clk 0:00:11.4]} 33...
hxg4 {[%clk 0:00:09.5]} 34. Bxg4 {[%clk 0:00:11.4]} 34... Rxc2 {[%clk
0:00:07.3]} 35. Rxc2 {[%clk 0:00:10.7]} 35... Ra4 {[%clk 0:00:08.2]} 36. Kf3
{[%clk 0:00:06.4]} 36... Rf4+ {[%clk 0:00:07.5]} 37. Kg3 {[%clk 0:00:06.7]}
37... Bxf5 {[%clk 0:00:07.9]} 38. Bxf5 {[%clk 0:00:06.7]} 38... Rxf5 {[%clk
0:00:08.5]} 39. Rc3 {[%clk 0:00:03.5]} 39... Rxe5 {[%clk 0:00:07.7]} 40. Rxa3
{[%clk 0:00:03.6]} 40... Rxc5 {[%clk 0:00:08.2]} 41. Ra7 {[%clk 0:00:03.8]}
41... Rb5 {[%clk 0:00:08.5]} 42. Kg4 {[%clk 0:00:04.1]} 42... Kg6 {[%clk
0:00:08.2]} 43. a4 {[%clk 0:00:04.1]} 43... Rb4+ {[%clk 0:00:08.2]} 44. Kg3
{[%clk 0:00:04.4]} 44... Kf5 {[%clk 0:00:08.7]} 45. Ra8 {[%clk 0:00:04.3]} 45...
Rb3+ {[%clk 0:00:07.8]} 46. Kf2 {[%clk 0:00:04.2]} 46... Ra3 {[%clk 0:00:08.2]}
47. Rb8 {[%clk 0:00:03.7]} 47... Rb3 {[%clk 0:00:08]} 48. Rf8+ {[%clk
0:00:03.5]} 48... Kg4 {[%clk 0:00:07.9]} 49. Rd8 {[%clk 0:00:03.4]} 49... c5
{[%clk 0:00:07]} 50. Rc8 {[%clk 0:00:02.7]} 50... Rc3 {[%clk 0:00:02.9]} 51. Rb8
{[%clk 0:00:02.6]} 51... c4 {[%clk 0:00:02.6]} 52. Rxb7 {[%clk 0:00:02.5]} 52...
Ra3 {[%clk 0:00:01.5]} 0-1

[Event "*** Titled Tuesday Blitz"]
[Site "Chess.com"]
[Date "2020.04.14"]
[Round "9"]
[White "temus_galaktionov"]
[Black "wonderfultime"]
[Result "0-1"]
[WhiteElo "2793"]
[BlackElo "2948"]
[TimeControl "180+1"]
[EndTime "11:43:48 PDT"]
[Termination "wonderfultime won by resignation"]

1. d4 {[%clk 0:03:00.9]} 1... d5 {[%clk 0:02:52.6]} 2. Nf3 {[%clk 0:03:00.5]}
2... Nf6 {[%clk 0:02:48.5]} 3. c4 {[%clk 0:03:00.9]} 3... c6 {[%clk 0:02:48]} 4.
Qb3 {[%clk 0:03:00]} 4... dxc4 {[%clk 0:02:35.6]} 5. Qxc4 {[%clk 0:03:00.9]}
5... Bg4 {[%clk 0:02:34.6]} 6. Nbd2 {[%clk 0:02:59.7]} 6... Nbd7 {[%clk
0:02:34]} 7. h3 {[%clk 0:02:59.1]} 7... e6 {[%clk 0:02:34.6]} 8. hxg4 {[%clk
0:02:58.7]} 8... Nxg4 {[%clk 0:01:45]} 9. e3 {[%clk 0:02:54.5]} 9... Bd6 {[%clk
0:01:42.4]} 10. Bd3 {[%clk 0:02:52.5]} 10... h6 {[%clk 0:01:39.8]} 11. e4 {[%clk
0:02:42.5]} 11... e5 {[%clk 0:01:36.1]} 12. d5 {[%clk 0:02:34.2]} 12... Bc5
{[%clk 0:01:33.8]} 13. Rf1 {[%clk 0:02:26.5]} 13... Qb6 {[%clk 0:01:31.6]} 14.
dxc6 {[%clk 0:02:17.2]} 14... Bxf2+ {[%clk 0:01:27]} 15. Ke2 {[%clk 0:02:17]}
15... bxc6 {[%clk 0:01:26.8]} 16. Nb3 {[%clk 0:02:14.4]} 16... Ndf6 {[%clk
0:01:16.8]} 17. Bd2 {[%clk 0:01:56.9]} 17... Rd8 {[%clk 0:01:11.2]} 18. Qb4
{[%clk 0:01:35.8]} 18... Nh5 {[%clk 0:01:08.9]} 19. Qxb6 {[%clk 0:01:11.3]}
19... Bxb6 {[%clk 0:01:09.8]} 20. Bc4 {[%clk 0:00:55.2]} 20... Ng3+ {[%clk
0:01:09.2]} 21. Ke1 {[%clk 0:00:53.4]} 21... Nxf1 {[%clk 0:01:04.6]} 22. Kxf1
{[%clk 0:00:54.3]} 22... O-O {[%clk 0:00:55.2]} 23. Ke2 {[%clk 0:00:52.6]} 23...
Rd7 {[%clk 0:00:45.6]} 24. Bc3 {[%clk 0:00:47.5]} 24... Re8 {[%clk 0:00:43.7]}
25. a4 {[%clk 0:00:42.1]} 25... Ne3 {[%clk 0:00:40.5]} 26. Bd3 {[%clk
0:00:39.8]} 26... Nxg2 {[%clk 0:00:39.2]} 27. Nxe5 {[%clk 0:00:32.3]} 27... Nf4+
{[%clk 0:00:36.5]} 28. Kd2 {[%clk 0:00:31.8]} 28... Rxe5 {[%clk 0:00:36.4]} 29.
Bxe5 {[%clk 0:00:32.7]} 29... Nxd3 {[%clk 0:00:34.8]} 30. Bc3 {[%clk 0:00:27.9]}
30... Nc5+ {[%clk 0:00:23.8]} 31. Kc2 {[%clk 0:00:26.2]} 31... Nxe4 {[%clk
0:00:24.3]} 32. Be5 {[%clk 0:00:20.3]} 32... f6 {[%clk 0:00:22.9]} 33. Bh2
{[%clk 0:00:19]} 33... c5 {[%clk 0:00:17.6]} 34. a5 {[%clk 0:00:17.6]} 34... c4
{[%clk 0:00:18.2]} 35. axb6 {[%clk 0:00:16.9]} 35... cxb3+ {[%clk 0:00:18.5]}
36. Kxb3 {[%clk 0:00:17.5]} 36... axb6 {[%clk 0:00:19.1]} 37. Ra8+ {[%clk
0:00:16.7]} 37... Kh7 {[%clk 0:00:19]} 38. Rb8 {[%clk 0:00:17.6]} 38... Rd2
{[%clk 0:00:16.9]} 39. Bg1 {[%clk 0:00:16.9]} 39... Nc5+ {[%clk 0:00:14]} 40.
Kc3 {[%clk 0:00:16.3]} 40... Rg2 {[%clk 0:00:13.9]} 41. Bd4 {[%clk 0:00:15.8]}
41... h5 {[%clk 0:00:12.7]} 42. Kc4 {[%clk 0:00:14.3]} 42... h4 {[%clk
0:00:10.3]} 43. Rxb6 {[%clk 0:00:13.6]} 43... Ne4 {[%clk 0:00:10.8]} 44. b4
{[%clk 0:00:11.8]} 44... h3 {[%clk 0:00:10.8]} 45. Ra6 {[%clk 0:00:05.9]} 45...
h2 {[%clk 0:00:10.7]} 46. Ra1 {[%clk 0:00:06.8]} 46... Ng3 {[%clk 0:00:10.5]}
47. b5 {[%clk 0:00:06.6]} 47... Rc2+ {[%clk 0:00:05.1]} 48. Kd3 {[%clk
0:00:04.8]} 48... Rc8 {[%clk 0:00:05.3]} 49. b6 {[%clk 0:00:03.9]} 49... h1=Q
{[%clk 0:00:05.6]} 50. Rxh1+ {[%clk 0:00:03.1]} 50... Nxh1 {[%clk 0:00:06.5]}
51. Ke4 {[%clk 0:00:03.3]} 51... Ng3+ {[%clk 0:00:06.6]} 52. Kd5 {[%clk
0:00:03.8]} 52... Nf5 {[%clk 0:00:07.1]} 53. Bf2 {[%clk 0:00:04.2]} 53... Kg6
{[%clk 0:00:07.2]} 54. Ke6 {[%clk 0:00:04.1]} 54... Rc2 {[%clk 0:00:07.2]} 55.
b7 {[%clk 0:00:02.7]} 55... Rb2 {[%clk 0:00:07.3]} 0-1

[Event "*** Titled Tuesday Blitz"]
[Site "Chess.com"]
[Date "2020.04.14"]
[Round "9"]
[White "Alexander_Zubov"]
[Black "Kobalia"]
[Result "0-1"]
[WhiteElo "2854"]
[BlackElo "2687"]
[TimeControl "180+1"]
[EndTime "11:43:48 PDT"]
[Termination "Kobalia won on time"]

1. e4 {[%clk 0:03:00.9]} 1... c6 {[%clk 0:02:59.7]} 2. Nf3 {[%clk 0:03:00.1]}
2... d5 {[%clk 0:03:00.3]} 3. d3 {[%clk 0:03:00.1]} 3... g6 {[%clk 0:02:58.8]}
4. e5 {[%clk 0:02:54.4]} 4... Bg7 {[%clk 0:02:57.1]} 5. Bf4 {[%clk 0:02:45.7]}
5... f6 {[%clk 0:02:55.5]} 6. Qe2 {[%clk 0:02:42.6]} 6... Bg4 {[%clk 0:02:53.1]}
7. Nbd2 {[%clk 0:02:38.9]} 7... Nd7 {[%clk 0:02:51.4]} 8. exf6 {[%clk
0:02:37.7]} 8... Ngxf6 {[%clk 0:02:50.7]} 9. h3 {[%clk 0:02:34.7]} 9... Bxf3
{[%clk 0:02:50.3]} 10. Nxf3 {[%clk 0:02:34.4]} 10... Qb6 {[%clk 0:02:41.6]} 11.
c3 {[%clk 0:02:09.1]} 11... O-O {[%clk 0:02:40.7]} 12. Be3 {[%clk 0:01:59.5]}
12... Qc7 {[%clk 0:02:38.9]} 13. g3 {[%clk 0:01:57.2]} 13... e5 {[%clk 0:02:38]}
14. Bg2 {[%clk 0:01:56.8]} 14... e4 {[%clk 0:02:35.7]} 15. dxe4 {[%clk
0:01:56.6]} 15... Nxe4 {[%clk 0:02:35.8]} 16. O-O {[%clk 0:01:56.4]} 16... Rae8
{[%clk 0:02:35.8]} 17. Rae1 {[%clk 0:01:54.4]} 17... Nd6 {[%clk 0:02:14.5]} 18.
Qc2 {[%clk 0:01:52]} 18... Ne5 {[%clk 0:02:01.1]} 19. Nxe5 {[%clk 0:01:45.9]}
19... Rxe5 {[%clk 0:01:58.8]} 20. Bf4 {[%clk 0:01:44.4]} 20... Rxe1 {[%clk
0:01:58.2]} 21. Rxe1 {[%clk 0:01:45.3]} 21... Qd7 {[%clk 0:01:58.4]} 22. Qa4
{[%clk 0:01:20.9]} 22... Nc4 {[%clk 0:01:47.7]} 23. Qxa7 {[%clk 0:00:59.1]}
23... Nxb2 {[%clk 0:01:42.7]} 24. Rb1 {[%clk 0:00:58]} 24... Bxc3 {[%clk
0:01:35.9]} 25. Bc1 {[%clk 0:00:38.3]} 25... Qg7 {[%clk 0:01:27.4]} 26. Be3
{[%clk 0:00:32.1]} 26... d4 {[%clk 0:01:24]} 27. Bc1 {[%clk 0:00:27.9]} 27... d3
{[%clk 0:01:24.4]} 28. Bxb2 {[%clk 0:00:25.7]} 28... Bxb2 {[%clk 0:01:23.5]} 29.
Qe3 {[%clk 0:00:26.3]} 29... Bd4 {[%clk 0:01:06.6]} 30. Qxd3 {[%clk 0:00:26.1]}
30... Rxf2 {[%clk 0:01:06.1]} 31. Kh1 {[%clk 0:00:24.9]} 31... h5 {[%clk
0:00:57.3]} 32. a4 {[%clk 0:00:23.7]} 32... Kh7 {[%clk 0:00:55.2]} 33. Be4
{[%clk 0:00:21.7]} 33... Kh6 {[%clk 0:00:43.7]} 34. a5 {[%clk 0:00:18.4]} 34...
Qd7 {[%clk 0:00:38.4]} 35. Bg2 {[%clk 0:00:16.9]} 35... Ra2 {[%clk 0:00:33.8]}
36. Rd1 {[%clk 0:00:13.2]} 36... c5 {[%clk 0:00:33.5]} 37. Rb1 {[%clk
0:00:13.7]} 37... Qf5 {[%clk 0:00:29.6]} 38. Qxf5 {[%clk 0:00:11]} 38... gxf5
{[%clk 0:00:29.5]} 39. Rb6+ {[%clk 0:00:11.9]} 39... Kg7 {[%clk 0:00:23.6]} 40.
Rxb7+ {[%clk 0:00:10.9]} 40... Kf6 {[%clk 0:00:23.9]} 41. Rb6+ {[%clk
0:00:10.4]} 41... Ke5 {[%clk 0:00:24]} 42. Rb5 {[%clk 0:00:08.4]} 42... Ra1+
{[%clk 0:00:21.6]} 43. Kh2 {[%clk 0:00:08.9]} 43... Bg1+ {[%clk 0:00:21.2]} 44.
Kh1 {[%clk 0:00:09.4]} 44... h4 {[%clk 0:00:18.9]} 45. Bf3 {[%clk 0:00:06.9]}
45... Bf2+ {[%clk 0:00:15.6]} 46. Kg2 {[%clk 0:00:06.8]} 46... hxg3 {[%clk
0:00:15.8]} 47. h4 {[%clk 0:00:07.1]} 47... Kf4 {[%clk 0:00:15.1]} 48. Rb3
{[%clk 0:00:05.9]} 48... c4 {[%clk 0:00:13.7]} 49. Rc3 {[%clk 0:00:05.5]} 49...
Bd4 {[%clk 0:00:10.9]} 50. Rc2 {[%clk 0:00:02]} 50... Rg1+ {[%clk 0:00:09.2]}
51. Kh3 {[%clk 0:00:01.6]} 51... Kxf3 {[%clk 0:00:09.3]} 0-1

[Event "*** Titled Tuesday Blitz"]
[Site "Chess.com"]
[Date "2020.04.14"]
[Round "9"]
[White "Keks2017"]
[Black "fabianvivasz"]
[Result "1-0"]
[WhiteElo "2486"]
[BlackElo "2273"]
[TimeControl "180+1"]
[EndTime "11:43:51 PDT"]
[Termination "Keks2017 won by resignation"]

1. e4 {[%clk 0:02:58.9]} 1... e5 {[%clk 0:02:57.5]} 2. Nf3 {[%clk 0:02:58.1]}
2... Nc6 {[%clk 0:02:57.6]} 3. Bb5 {[%clk 0:02:58]} 3... f5 {[%clk 0:02:57.5]}
4. Nc3 {[%clk 0:02:57.2]} 4... fxe4 {[%clk 0:02:57.1]} 5. Nxe4 {[%clk
0:02:54.9]} 5... Nf6 {[%clk 0:02:58]} 6. Qe2 {[%clk 0:02:37.3]} 6... d5 {[%clk
0:02:57]} 7. Nxf6+ {[%clk 0:02:22.2]} 7... gxf6 {[%clk 0:02:57.9]} 8. d4 {[%clk
0:02:16.2]} 8... Bg7 {[%clk 0:02:56.1]} 9. dxe5 {[%clk 0:02:06]} 9... O-O {[%clk
0:02:55.5]} 10. e6 {[%clk 0:02:01.9]} 10... Ne5 {[%clk 0:02:52.8]} 11. Bd2
{[%clk 0:01:40.5]} 11... c5 {[%clk 0:02:40.4]} 12. Nxe5 {[%clk 0:01:29]} 12...
fxe5 {[%clk 0:02:38.7]} 13. c4 {[%clk 0:01:28.6]} 13... d4 {[%clk 0:02:15.4]}
14. Ba4 {[%clk 0:01:25.8]} 14... Bxe6 {[%clk 0:01:50.2]} 15. Bc2 {[%clk
0:01:23.7]} 15... Qf6 {[%clk 0:01:15.2]} 16. O-O {[%clk 0:01:15.6]} 16... Rae8
{[%clk 0:00:59.7]} 17. Be4 {[%clk 0:01:15]} 17... Bf5 {[%clk 0:00:48.3]} 18. f3
{[%clk 0:01:10.3]} 18... Bxe4 {[%clk 0:00:43.1]} 19. Qxe4 {[%clk 0:01:09.8]}
19... Qc6 {[%clk 0:00:40.7]} 20. Qxc6 {[%clk 0:01:07.1]} 20... bxc6 {[%clk
0:00:41.6]} 21. Rfe1 {[%clk 0:01:03.2]} 21... Rf7 {[%clk 0:00:21]} 22. b3 {[%clk
0:01:01.6]} 22... d3 {[%clk 0:00:18.4]} 23. Re4 {[%clk 0:00:58.4]} 23... Rd7
{[%clk 0:00:17]} 24. Rd1 {[%clk 0:00:57.7]} 24... Rd4 {[%clk 0:00:16.2]} 25. Be3
{[%clk 0:00:47.7]} 25... Rxe4 {[%clk 0:00:15.9]} 26. fxe4 {[%clk 0:00:47.7]}
26... Rd8 {[%clk 0:00:15.3]} 27. Bxc5 {[%clk 0:00:41.5]} 27... Rd7 {[%clk
0:00:15.5]} 28. Be3 {[%clk 0:00:40.6]} 28... Bf8 {[%clk 0:00:15.1]} 29. g4
{[%clk 0:00:30.5]} 29... Kf7 {[%clk 0:00:15.1]} 30. Kg2 {[%clk 0:00:30.5]} 30...
Ke6 {[%clk 0:00:15]} 31. Kg3 {[%clk 0:00:29.4]} 31... Bb4 {[%clk 0:00:15.2]} 32.
h4 {[%clk 0:00:28.9]} 32... d2 {[%clk 0:00:15.4]} 33. Kf3 {[%clk 0:00:28.2]}
33... a5 {[%clk 0:00:13.6]} 34. Ke2 {[%clk 0:00:26.5]} 34... Rg7 {[%clk
0:00:12.1]} 35. g5 {[%clk 0:00:26.4]} 35... h6 {[%clk 0:00:11.8]} 36. gxh6
{[%clk 0:00:25.3]} 36... Rg2+ {[%clk 0:00:11.4]} 37. Kf3 {[%clk 0:00:25.2]}
37... Rh2 {[%clk 0:00:10.9]} 38. Bg5 {[%clk 0:00:24.2]} 38... Kf7 {[%clk
0:00:09.8]} 39. Kg3 {[%clk 0:00:17.5]} 39... Re2 {[%clk 0:00:09.2]} 40. Kg4
{[%clk 0:00:17.6]} 40... Kg6 {[%clk 0:00:08.7]} 41. h5+ {[%clk 0:00:17.5]} 41...
Kh7 {[%clk 0:00:09]} 42. Kf5 {[%clk 0:00:17.7]} 42... Re1 {[%clk 0:00:07.7]} 43.
Rxd2 {[%clk 0:00:16.7]} 43... Bxd2 {[%clk 0:00:07.7]} 44. Bxd2 {[%clk
0:00:16.7]} 44... Re2 {[%clk 0:00:08.5]} 45. Bxa5 {[%clk 0:00:16.2]} 45... Rxa2
{[%clk 0:00:09.4]} 46. Bc3 {[%clk 0:00:13]} 46... Ra3 {[%clk 0:00:09.1]} 47.
Bxe5 {[%clk 0:00:12.9]} 47... Rxb3 {[%clk 0:00:09.7]} 48. c5 {[%clk 0:00:12.8]}
48... Rh3 {[%clk 0:00:08.5]} 49. Ke6 {[%clk 0:00:10.4]} 49... Kxh6 {[%clk
0:00:07.9]} 50. Bd6 {[%clk 0:00:10.2]} 50... Kxh5 {[%clk 0:00:06.9]} 51. e5
{[%clk 0:00:10.2]} 51... Kg6 {[%clk 0:00:07.1]} 52. Kd7 {[%clk 0:00:10.3]} 52...
Kf5 {[%clk 0:00:07.3]} 53. e6 {[%clk 0:00:10.2]} 53... Rh7+ {[%clk 0:00:05.8]}
54. e7 {[%clk 0:00:10.2]} 54... Rg7 {[%clk 0:00:05.4]} 55. Kd8 {[%clk
0:00:10.1]} 55... Rg8+ {[%clk 0:00:02.1]} 56. e8=Q {[%clk 0:00:09.9]} 56...
Rxe8+ {[%clk 0:00:02.6]} 57. Kxe8 {[%clk 0:00:10]} 57... Ke6 {[%clk 0:00:03.5]}
58. Kd8 {[%clk 0:00:10.2]} 58... Kd5 {[%clk 0:00:03.6]} 59. Kc7 {[%clk
0:00:10.3]} 1-0